[Event "GER-ch Youth ODJM 2019"]
[Site "Willingen"]
[Date "2019.06.12"]
[Round "6.15"]
[White "Parvanyan, Alfred"]
[Black "Fistoul, Boris"]
[Result "1-0"]
[ECO "A00"]
[WhiteElo "2066"]
[BlackElo "1918"]
[Annotator "NA"]
[PlyCount "91"]
[EventDate "2019.06.07"]
[EventType "swiss"]
[EventRounds "9"]
[EventCountry "GER"]
[SourceTitle "playchess.com"]
[Source "ChessBase"]
[SourceQuality "1"]
[TimeControl "40/5400+30:1800+30"]

1. g3 {[%emt 0:00:00]} e6 {[%emt 0:02:02]} 2. Bg2 {[%emt 0:00:00]} f5 {[%emt 0:00:41]} 3. d4 {[%emt 0:00:21]} Nf6 {[%emt 0:00:40]} 4. c4 {[%emt 0:00:14]} g6 {[%emt 0:06:26]} 5. Nf3 {[%emt 0:01:47]} Bg7 {[%emt 0:02:32]} 6. O-O {[%emt 0:00:54]} O-O {[%emt 0:00:35]} 7. Qc2 {[%emt 0:01:45]} d6 {[%emt 0:09:53]} 8. b3 {[%emt 0:02:59]} Nc6 {[%emt 0:04:55]} 9. Bb2 {[%emt 0:00:55]} Ne4 {[%emt 0:08:39]} 10. Rd1 {[%emt 0:02:56]} Qe8 {[%emt 0:01:50]} 11. d5 {[%emt 0:10:41]} Nb4 {[%emt 0:02:18]} 12. Qc1 {[%emt 0:00:08]} e5 {[%emt 0:00:58]} 13. a3 {[%emt 0:10:58]} Na6 {[%emt 0:00:07]} 14. b4 {[%emt 0:00:07]} b6 {[%emt 0:01:48]} 15. Ne1 {[%emt 0:05:26]} Qf7 {[%emt 0:05:22]} 16. Nd3 {[%emt 0:01:42]} Bd7 {[%emt 0:05:40]} 17. a4 {[%emt 0:01:22]} Rae8 {[%emt 0:04:14]} 18. a5 {[%emt 0:05:30]} Bc8 {[%emt 0:00:58]} 19. Nd2 {[%emt 0:13:00]} Bh6 {[%emt 0:07:51]} 20. e3 {[%emt 0:00:44]} Nxd2 {[%emt 0:01:19]} 21. Qxd2 {[%emt 0:00:06]} f4 {[%emt 0:00:46]} 22. exf4 {[%emt 0:01:30]} exf4 {[%emt 0:00:24]} 23. Qc3 {[%emt 0:02:15]} Bg7 {[%emt 0:01:40]} 24. Qxg7+ {[%emt 0:00:09]} Qxg7 {[%emt 0:00:03]} 25. Bxg7 {[%emt 0:00:06]} Kxg7 {[%emt 0:00:11]} 26. axb6 {[%emt 0:02:16]} axb6 {[%emt 0:05:21]} 27. b5 {[%emt 0:01:51]} Nc5 {[%emt 0:00:34]} 28. Nxf4 {[%emt 0:01:30]} g5 {[%emt 0:01:07]} 29. Nd3 {[%emt 0:08:07]} Bg4 {[%emt 0:04:37]} 30. Nxc5 {[%emt 0:01:44]} Bxd1 {[%emt 0:00:34]} 31. Ne6+ {[%emt 0:00:16]} Rxe6 {[%emt 0:00:11]} 32. dxe6 {[%emt 0:00:05]} Bg4 {[%emt 0:00:20]} 33. Bd5 {[%emt 0:04:13]} Re8 {[%emt 0:01:13]} 34. Ra7 {[%emt 0:02:01]} Re7 {[%emt 0:00:54]} 35. f3 {[%emt 0:00:06]} Bh3 {[%emt 0:02:05]} 36. g4 {[%emt 0:04:02]} h5 {[%emt 0:00:55]} 37. Kf2 {[%emt 0:02:26]} hxg4 {[%emt 0:00:56]} 38. Kg3 {[%emt 0:00:27]} Kf6 {[%emt 0:08:29]} 39. fxg4 {[%emt 0:00:32]} Bf1 {[%emt 0:00:26]} 40. Ra3 {[%emt 0:01:49]} Be2 {[%emt 0:03:16]} 41. h3 {[%emt 0:38:36]} Bd1 {[%emt 0:33:40]} 42. Rc3 {[%emt 0:02:28]} Ke5 {[%emt 0:00:00]} 43. Rc1 {[%emt 0:00:00]} Ba4 {[%emt 0:00:00]} 44. Rf1 {[%emt 0:00:00]} Bxb5 {[%emt 0:00:00]} 45. Rf5+ {[%emt 0:00:00]} Kd4 {[%emt 0:00:00]} 46. cxb5 {[%emt 0:00:00] normal Kxd5} 1-0

[Event "GER-ch Youth ODJM 2019"]
[Site "Willingen"]
[Date "2019.06.12"]
[Round "6.16"]
[White "Kracht, Raphael"]
[Black "Gerlach, Felix Tobias"]
[Result "1/2-1/2"]
[ECO "C68"]
[WhiteElo "1976"]
[BlackElo "2079"]
[Annotator "NA"]
[PlyCount "51"]
[EventDate "2019.06.07"]
[EventType "swiss"]
[EventRounds "9"]
[EventCountry "GER"]
[SourceTitle "playchess.com"]
[Source "ChessBase"]
[SourceQuality "1"]
[TimeControl "40/5400+30:1800+30"]

1. e4 {[%emt 0:00:00]} e5 {[%emt 0:00:07]} 2. Nf3 {[%emt 0:00:21]} Nc6 {[%emt 0:03:28]} 3. Bb5 {[%emt 0:00:03]} a6 {[%emt 0:00:10]} 4. Bxc6 {[%emt 0:00:08]} dxc6 {[%emt 0:00:17]} 5. O-O {[%emt 0:00:04]} Bd6 {[%emt 0:08:25]} 6. d4 {[%emt 0:00:04]} exd4 {[%emt 0:00:07]} 7. Qxd4 {[%emt 0:00:05]} f6 {[%emt 0:00:08]} 8. Nc3 {[%emt 0:03:34]} Be6 {[%emt 0:10:39]} 9. Be3 {[%emt 0:01:17]} Ne7 {[%emt 0:02:26]} 10. Rad1 {[%emt 0:02:17]} O-O {[%emt 0:03:12]} 11. h3 {[%emt 0:04:56]} Ng6 {[%emt 0:01:57]} 12. Qd2 {[%emt 0:01:05]} Qe7 {[%emt 0:00:54]} 13. Nd4 {[%emt 0:03:20]} Rad8 {[%emt 0:01:47]} 14. Qe2 {[%emt 0:02:28]} Bc8 {[%emt 0:03:04]} 15. Rfe1 {[%emt 0:10:21]} Rfe8 {[%emt 0:01:18]} 16. Nf5 {[%emt 0:11:02]} Qe5 {[%emt 0:08:33]} 17. Nxd6 {[%emt 0:01:00]} cxd6 {[%emt 0:00:49]} 18. Bb6 {[%emt 0:03:46]} Rd7 {[%emt 0:00:21]} 19. g3 {[%emt 0:02:48]} Qe6 {[%emt 0:02:35]} 20. Qh5 {[%emt 0:07:54]} Rde7 {[%emt 0:02:13]} 21. b3 {[%emt 0:08:09]} Qxh3 {[%emt 0:09:59]} 22. Qxh3 {[%emt 0:00:43]} Bxh3 {[%emt 0:00:05]} 23. Rxd6 {[%emt 0:06:53]} f5 {[%emt 0:02:09]} 24. Bd8 {[%emt 0:14:54]} Re6 {[%emt 0:02:56]} 25. Rxe6 {[%emt 0:03:47]} Rxe6 {[%emt 0:01:11]} 26. Re3 {normal} 1/2-1/2

[Event "GER-ch Youth ODJM 2019"]
[Site "Willingen"]
[Date "2019.06.13"]
[Round "7.1"]
[White "Schmied, Elias"]
[Black "Astner, Sebastian"]
[Result "0-1"]
[ECO "D00"]
[WhiteElo "1669"]
[BlackElo "1870"]
[Annotator "NA RC"]
[PlyCount "64"]
[EventDate "2019.06.07"]
[EventType "swiss"]
[EventRounds "9"]
[EventCountry "GER"]
[SourceTitle "playchess.com"]
[Source "ChessBase"]
[SourceQuality "1"]
[TimeControl "40/5400+30:1800+30"]

1. d4 {[%emt 0:00:00]} d5 {[%emt 0:00:00]} 2. Bf4 {[%emt 0:00:00]} Bf5 {[%emt 0:00:08]} 3. Nf3 {[%emt 0:00:23]} e6 {[%emt 0:00:32]} 4. e3 {[%emt 0:00:58]} Nf6 {[%emt 0:00:14]} 5. Bd3 {[%emt 0:01:46]} Bg6 {[%emt 0:01:17]} 6. O-O {[%emt 0:01:38]} Bd6 {[%emt 0:00:49]} 7. Bg3 {[%emt 0:05:01]} O-O {[%emt 0:01:13]} 8. c4 {[%emt 0:01:59]} c6 {[%emt 0:02:45]} 9. Nc3 {[%emt 0:00:55]} Qc7 {[%emt 0:01:43]} 10. Rc1 {[%emt 0:02:24]} Bxg3 {[%emt 0:01:19]} 11. hxg3 {[%emt 0:00:12]} Nbd7 {[%emt 0:01:15]} 12. cxd5 {[%emt 0:03:49]} exd5 {[%emt 0:00:30]} 13. b4 {[%emt 0:04:21]} Qd6 {[%emt 0:07:04]} 14. Bxg6 {[%emt 0:03:37]} hxg6 {[%emt 0:00:09]} 15. Qb3 {[%emt 0:05:21]} Nb6 {[%emt 0:11:54]} 16. Nd2 {[%emt 0:10:56]} Rfc8 {[%emt 0:05:36]} 17. Rc2 {[%emt 0:07:10]} Qd8 {[%emt 0:05:14]} 18. Rfc1 {[%emt 0:09:13]} Ne8 {[%emt 0:03:55]} 19. b5 {[%emt 0:05:14]} Nd6 {[%emt 0:03:46]} 20. bxc6 {[%emt 0:01:40]} bxc6 {[%emt 0:00:44]} 21. Na4 {[%emt 0:00:47]} Nbc4 {[%emt 0:02:03]} 22. Nb2 {[%emt 0:01:43]} Rab8 {[%emt 0:01:45]} 23. Qc3 {[%emt 0:06:36]} Nb5 {[%emt 0:01:22]} 24. Qd3 {[%emt 0:00:09]} Nba3 {[%emt 0:00:34]} 25. Nbxc4 {[%emt 0:02:47]} Nxc2 {[%emt 0:00:08]} 26. Rxc2 {[%emt 0:00:06]} dxc4 {[%emt 0:00:03]} 27. Qxc4 {[%emt 0:00:06]} Qd5 {[%emt 0:01:22]} 28. Nb3 {[%emt 0:01:56]} Qxc4 {[%emt 0:08:42]} 29. Rxc4 {[%emt 0:00:09]} Kf8 {[%emt 0:00:08]} 30. Na5 {[%emt 0:03:05]} Rb1+ {[%emt 0:01:06]} 31. Kh2 {[%emt 0:00:05]} Ke7 {[%emt 0:01:03]} 32. Rxc6 {[%emt 0:02:27]} Rh8# {normal} 0-1

[Event "GER-ch Youth ODJM 2019"]
[Site "Willingen"]
[Date "2019.06.13"]
[Round "7.2"]
[White "Matthes, Benjamin"]
[Black "Werner, Tom"]
[Result "1-0"]
[ECO "C00"]
[WhiteElo "1737"]
[BlackElo "1772"]
[Annotator "NA RC"]
[PlyCount "109"]
[EventDate "2019.06.07"]
[EventType "swiss"]
[EventRounds "9"]
[EventCountry "GER"]
[SourceTitle "playchess.com"]
[Source "ChessBase"]
[SourceQuality "1"]
[TimeControl "40/5400+30:1800+30"]

1. e4 {[%emt 0:00:00]} e6 {[%emt 0:00:00]} 2. Nf3 {[%emt 0:00:00]} d5 {[%emt 0:00:00]} 3. e5 {[%emt 0:00:02]} c5 {[%emt 0:00:10]} 4. b4 {[%emt 0:00:21]} cxb4 {[%emt 0:00:40]} 5. a3 {[%emt 0:00:06]} Nc6 {[%emt 0:00:26]} 6. axb4 {[%emt 0:00:44]} Bxb4 {[%emt 0:00:33]} 7. c3 {[%emt 0:00:12]} Be7 {[%emt 0:01:00]} 8. d4 {[%emt 0:00:07]} Bd7 {[%emt 0:00:35]} 9. Bd3 {[%emt 0:03:02]} a6 {[%emt 0:03:47]} 10. O-O {[%emt 0:07:34]} b5 {[%emt 0:02:23]} 11. Re1 {[%emt 0:17:39]} Qb6 {[%emt 0:03:51]} 12. Be3 {[%emt 0:07:01]} Na5 {[%emt 0:06:53]} 13. Nbd2 {[%emt 0:12:55]} Nc4 {[%emt 0:04:17]} 14. Nxc4 {[%emt 0:03:48]} bxc4 {[%emt 0:05:26]} 15. Bc2 {[%emt 0:00:32]} Bd8 {[%emt 0:04:41]} 16. Qe2 {[%emt 0:04:48]} Ne7 {[%emt 0:03:12]} 17. Reb1 {[%emt 0:01:46]} Qa7 {[%emt 0:02:20]} 18. Ra2 {[%emt 0:09:37]} Nf5 {[%emt 0:11:21]} 19. Rab2 {[%emt 0:07:23]} Bc6 {[%emt 0:03:55]} 20. Bxf5 {[%emt 0:11:48]} exf5 {[%emt 0:02:11]} 21. e6 {[%emt 0:00:07]} fxe6 {[%emt 0:12:32]} 22. Bg5 {[%emt 0:03:43]} Qd7 {[%emt 0:04:21]} 23. Ne5 {[%emt 0:01:06]} Qd6 {[%emt 0:02:46]} 24. Bxd8 {[%emt 0:00:38]} Rxd8 {[%emt 0:00:41]} 25. Qh5+ {[%emt 0:02:44]} g6 {[%emt 0:00:42]} 26. Nxg6 {[%emt 0:00:09]} hxg6 {[%emt 0:00:54]} 27. Qxh8+ {[%emt 0:00:06]} Kf7 {[%emt 0:00:47]} 28. Qh7+ {[%emt 0:04:35]} Kf6 {[%emt 0:00:10]} 29. Rb6 {[%emt 0:00:40]} Qd7 {[%emt 0:05:31]} 30. Qh4+ {[%emt 0:00:41]} Kg7 {[%emt 0:01:13]} 31. Qg5 {[%emt 0:01:04]} Bb5 {[%emt 0:02:57]} 32. Rb7 {[%emt 0:00:28]} Qxb7 {[%emt 0:00:58]} 33. Qxd8 {[%emt 0:00:02]} Qf7 {[%emt 0:01:11]} 34. Qd6 {[%emt 0:00:23]} Qf6 {[%emt 0:01:52]} 35. Re1 {[%emt 0:00:55]} Kf7 {[%emt 0:00:25]} 36. Qc7+ {[%emt 0:00:21]} Qe7 {[%emt 0:01:58]} 37. Qe5 {[%emt 0:00:19]} Qf6 {[%emt 0:00:23]} 38. Qc7+ {[%emt 0:00:40]} Qe7 {[%emt 0:00:19]} 39. Qe5 {[%emt 0:00:09]} Qf6 {[%emt 0:00:16]} 40. f4 {[%emt 0:01:12]} Qxe5 {[%emt 0:01:10]} 41. fxe5 {[%emt 0:06:48]} g5 {[%emt 0:03:52]} 42. g4 {[%emt 0:11:08]} f4 {[%emt 0:02:28]} 43. Ra1 {[%emt 0:00:35]} Kg6 {[%emt 0:01:37]} 44. Kf2 {[%emt 0:00:15]} Kh6 {[%emt 0:00:37]} 45. Kf3 {[%emt 0:00:09]} Kg6 {[%emt 0:00:25]} 46. h4 {[%emt 0:07:15]} Kh6 {[%emt 0:00:56]} 47. hxg5+ {[%emt 0:02:12]} Kxg5 {[%emt 0:00:08]} 48. Ra3 {[%emt 0:00:53]} Be8 {[%emt 0:02:39]} 49. Rxa6 {[%emt 0:00:07]} Bg6 {[%emt 0:00:05]} 50. Rxe6 {[%emt 0:00:36]} Be4+ {[%emt 0:00:06]} 51. Kf2 {[%emt 0:00:20]} Kxg4 {[%emt 0:00:33]} 52. Rf6 {[%emt 0:02:01]} Kg5 {[%emt 0:00:32]} 53. Rf8 {[%emt 0:00:25]} Bf5 {[%emt 0:00:35]} 54. Rg8+ {[%emt 0:00:41]} Bg6 {[%emt 0:00:34]} 55. Kf3 {[%emt 0:00:23] normal} 1-0

[Event "GER-ch Youth ODJM 2019"]
[Site "Willingen"]
[Date "2019.06.13"]
[Round "7.3"]
[White "Wichert, Eddi"]
[Black "Guenther, Emil"]
[Result "1-0"]
[ECO "A00"]
[WhiteElo "1702"]
[BlackElo "1689"]
[Annotator "NA RC"]
[PlyCount "147"]
[EventDate "2019.06.07"]
[EventType "swiss"]
[EventRounds "9"]
[EventCountry "GER"]
[SourceTitle "playchess.com"]
[Source "ChessBase"]
[SourceQuality "1"]
[TimeControl "40/5400+30:1800+30"]

1. Nc3 {[%emt 0:00:00]} d5 {[%emt 0:00:00]} 2. e4 {[%emt 0:00:00]} Nf6 {[%emt 0:00:03]} 3. exd5 {[%emt 0:00:00]} Nxd5 {[%emt 0:00:09]} 4. Nf3 {[%emt 0:00:26]} e6 {[%emt 0:00:54]} 5. d4 {[%emt 0:02:13]} Nxc3 {[%emt 0:02:51]} 6. bxc3 {[%emt 0:00:07]} c5 {[%emt 0:00:10]} 7. Bd3 {[%emt 0:02:32]} Be7 {[%emt 0:00:22]} 8. Ne5 {[%emt 0:13:29]} Nd7 {[%emt 0:07:20]} 9. O-O {[%emt 0:02:00]} Nxe5 {[%emt 0:03:51]} 10. dxe5 {[%emt 0:00:05]} c4 {[%emt 0:07:23]} 11. Bxc4 {[%emt 0:00:56]} Qxd1 {[%emt 0:00:08]} 12. Rxd1 {[%emt 0:00:04]} Bd7 {[%emt 0:00:33]} 13. Be3 {[%emt 0:01:41]} Bc6 {[%emt 0:04:04]} 14. a4 {[%emt 0:07:14]} a6 {[%emt 0:00:12]} 15. Bb6 {[%emt 0:01:55]} O-O {[%emt 0:00:28]} 16. Rd4 {[%emt 0:07:43]} Rfc8 {[%emt 0:05:51]} 17. a5 {[%emt 0:08:08]} Bd8 {[%emt 0:03:30]} 18. Bxd8 {[%emt 0:11:28]} Rxd8 {[%emt 0:04:52]} 19. Rb1 {[%emt 0:01:43]} h6 {[%emt 0:04:55]} 20. f3 {[%emt 0:02:52]} Rdc8 {[%emt 0:01:26]} 21. Bd3 {[%emt 0:03:56]} Rc7 {[%emt 0:02:36]} 22. Kf2 {[%emt 0:05:24]} Rac8 {[%emt 0:00:21]} 23. c4 {[%emt 0:08:06]} Kh8 {[%emt 0:02:27]} 24. Ke3 {[%emt 0:01:42]} Kg8 {[%emt 0:03:08]} 25. Kd2 {[%emt 0:04:40]} g5 {[%emt 0:04:44]} 26. Kc3 {[%emt 0:00:31]} Bd5 {[%emt 0:02:29]} 27. Kb4 {[%emt 0:00:51]} Bc6 {[%emt 0:01:10]} 28. Be2 {[%emt 0:00:44]} Kf8 {[%emt 0:02:25]} 29. h4 Kg7 {[%emt 0:04:01]} 30. g3 {[%emt 0:02:44]} Rh8 {[%emt 0:02:34]} 31. f4 {[%emt 0:00:35]} gxh4 {[%emt 0:02:16]} 32. gxh4 {[%emt 0:00:07]} Rg8 {[%emt 0:00:55]} 33. Rg1+ {[%emt 0:02:37]} Kh8 {[%emt 0:00:11]} 34. Rxg8+ {[%emt 0:00:46]} Kxg8 {[%emt 0:00:09]} 35. Bd3 {[%emt 0:00:33]} Kg7 {[%emt 0:00:36]} 36. Rd6 {[%emt 0:01:17]} Rc8 37. f5 exf5 {[%emt 0:01:26]} 38. Bxf5 {[%emt 0:01:33]} Rc7 {[%emt 0:01:13]} 39. e6 {[%emt 0:02:01]} fxe6 {[%emt 0:00:26]} 40. Rxe6 {[%emt 0:00:42]} h5 {[%emt 0:05:31]} 41. Rg6+ {[%emt 0:31:02]} Kf8 {[%emt 0:35:43]} 42. Rh6 {[%emt 0:01:43]} Bf3 {[%emt 0:01:34]} 43. Rh8+ {[%emt 0:02:40]} Ke7 {[%emt 0:00:08]} 44. Rh7+ {[%emt 0:00:04]} Kd6 {[%emt 0:00:08]} 45. Rxc7 {[%emt 0:00:03]} Kxc7 {[%emt 0:00:08]} 46. c5 {[%emt 0:00:25]} Kc6 {[%emt 0:00:50]} 47. c4 {[%emt 0:00:39]} Kc7 {[%emt 0:02:57]} 48. Kc3 {[%emt 0:00:12]} Kd8 {[%emt 0:06:16]} 49. Kd4 {[%emt 0:00:17]} Ke7 {[%emt 0:00:12]} 50. Ke5 {[%emt 0:00:52]} Be2 {[%emt 0:02:07]} 51. Be6 {[%emt 0:03:02]} Bf1 {[%emt 0:00:38]} 52. Bd5 {[%emt 0:00:18]} Kd7 {[%emt 0:00:51]} 53. Bxb7 {[%emt 0:00:52]} Bxc4 {[%emt 0:00:10]} 54. Bf3 {[%emt 0:00:29]} Bf7 {[%emt 0:00:30]} 55. Kf6 {[%emt 0:00:00]} Be8 {[%emt 0:00:00]} 56. Kg5 {[%emt 0:00:00]} Bf7 {[%emt 0:00:00]} 57. Bxh5 {[%emt 0:00:00]} Bd5 {[%emt 0:00:00]} 58. Be2 {[%emt 0:00:00]} Kc6 {[%emt 0:00:00]} 59. Bxa6 {[%emt 0:00:00]} Kxc5 {[%emt 0:00:00]} 60. Be2 {[%emt 0:00:00]} Kd6 {[%emt 0:00:00]} 61. Kf6 {[%emt 0:00:00]} Kd7 {[%emt 0:00:00]} 62. h5 {[%emt 0:00:00]} Be4 {[%emt 0:00:00]} 63. h6 {[%emt 0:00:00]} Kc6 {[%emt 0:00:00]} 64. Kg7 {[%emt 0:00:00]} Kb7 {[%emt 0:00:00]} 65. h7 {[%emt 0:00:00]} Bxh7 {[%emt 0:00:00]} 66. Kxh7 {[%emt 0:00:00]} Ka7 {[%emt 0:00:00]} 67. Kg6 {[%emt 0:00:00]} Kb7 {[%emt 0:00:00]} 68. Kf6 {[%emt 0:00:00]} Ka7 {[%emt 0:00:00]} 69. Ke6 {[%emt 0:00:00]} Kb7 {[%emt 0:00:00]} 70. Kd6 {[%emt 0:00:00]} Ka7 {[%emt 0:00:00]} 71. Kc7 {[%emt 0:00:00]} Ka8 {[%emt 0:00:00]} 72. Kb6 {[%emt 0:00:00]} Kb8 {[%emt 0:00:00]} 73. a6 {[%emt 0:00:00]} Ka8 {[%emt 0:00:00]} 74. Bf3+ {[%emt 0:00:00] normal} 1-0

[Event "GER-ch Youth ODJM 2019"]
[Site "Willingen"]
[Date "2019.06.13"]
[Round "7.4"]
[White "von der Weyden, Louis"]
[Black "Grossmann, Piet"]
[Result "0-1"]
[ECO "A13"]
[WhiteElo "1670"]
[BlackElo "1801"]
[Annotator "NA RC"]
[PlyCount "118"]
[EventDate "2019.06.07"]
[EventType "swiss"]
[EventRounds "9"]
[EventCountry "GER"]
[SourceTitle "playchess.com"]
[Source "ChessBase"]
[SourceQuality "1"]
[TimeControl "40/5400+30:1800+30"]

1. c4 {[%emt 0:00:00]} e6 {[%emt 0:00:00]} 2. e4 {[%emt 0:00:00]} d5 {[%emt 0:01:41]} 3. cxd5 {[%emt 0:00:00]} exd5 {[%emt 0:00:09]} 4. exd5 {[%emt 0:00:07]} Nf6 {[%emt 0:00:47]} 5. Nc3 {[%emt 0:00:35]} Nxd5 {[%emt 0:02:01]} 6. Bc4 {[%emt 0:01:36]} Nb6 {[%emt 0:08:25]} 7. Be2 {[%emt 0:05:58]} Be7 {[%emt 0:02:42]} 8. d4 {[%emt 0:01:12]} c6 {[%emt 0:00:54]} 9. Nf3 {[%emt 0:00:42]} O-O {[%emt 0:00:23]} 10. O-O {[%emt 0:00:17]} Be6 {[%emt 0:00:47]} 11. Be3 {[%emt 0:01:42]} N8d7 {[%emt 0:00:49]} 12. Qc2 {[%emt 0:02:40]} h6 {[%emt 0:01:59]} 13. Rfd1 {[%emt 0:11:48]} Nf6 {[%emt 0:01:06]} 14. Ne5 {[%emt 0:09:00]} Nbd5 {[%emt 0:03:06]} 15. Nxd5 {[%emt 0:00:38]} Nxd5 {[%emt 0:00:09]} 16. Bd2 {[%emt 0:02:35]} Qb6 {[%emt 0:12:19]} 17. Nf3 {[%emt 0:19:01]} Bf6 {[%emt 0:03:59]} 18. Qe4 {[%emt 0:01:37]} Rfe8 {[%emt 0:01:47]} 19. Qc2 {[%emt 0:20:01]} Bg4 {[%emt 0:22:00]} 20. Qc4 {[%emt 0:06:47]} Bxf3 {[%emt 0:06:43]} 21. Bxf3 {[%emt 0:00:19]} Bxd4 {[%emt 0:01:20]} 22. Bxd5 {[%emt 0:07:10]} Bxf2+ {[%emt 0:00:50]} 23. Kh1 {[%emt 0:00:30]} cxd5 {[%emt 0:00:03]} 24. Qxd5 {[%emt 0:00:08]} Rad8 {[%emt 0:01:43]} 25. Qf3 {[%emt 0:01:36]} Bd4 {[%emt 0:11:03]} 26. Bc3 {[%emt 0:02:23]} Bxc3 {[%emt 0:01:20]} 27. Rxd8 {[%emt 0:01:27]} Rxd8 {[%emt 0:00:35]} 28. Qxc3 {[%emt 0:00:51]} Qf2 {[%emt 0:02:17]} 29. Rb1 {[%emt 0:02:04]} Qd2 {[%emt 0:03:57]} 30. Qxd2 {[%emt 0:01:14]} Rxd2 {[%emt 0:00:08]} 31. Kg1 {[%emt 0:00:04]} a6 {[%emt 0:00:34]} 32. a4 {[%emt 0:00:58]} Rd4 {[%emt 0:02:41]} 33. b3 {[%emt 0:00:36]} Rb4 {[%emt 0:00:04]} 34. Rb2 {[%emt 0:00:11]} f6 {[%emt 0:00:05]} 35. Kf2 {[%emt 0:00:14]} a5 {[%emt 0:01:32]} 36. Ke3 {[%emt 0:00:12]} b5 {[%emt 0:00:29]} 37. axb5 {[%emt 0:00:21]} Rxb5 {[%emt 0:00:05]} 38. Kd3 {[%emt 0:00:19]} a4 {[%emt 0:00:27]} 39. Kc4 {[%emt 0:00:59]} Rxb3 {[%emt 0:00:18]} 40. Rxb3 axb3 {[%emt 0:00:03]} 41. Kxb3 {[%emt 0:30:12]} Kf7 {[%emt 0:30:06]} 42. Kc4 {[%emt 0:00:11]} Ke6 {[%emt 0:00:10]} 43. Kd4 {[%emt 0:00:19]} Kf5 {[%emt 0:00:26]} 44. Ke3 {[%emt 0:00:49]} Kg4 {[%emt 0:03:34]} 45. Ke4 {[%emt 0:00:24]} h5 {[%emt 0:01:33]} 46. Ke3 {[%emt 0:00:15]} h4 {[%emt 0:01:53]} 47. Ke2 {[%emt 0:01:55]} Kf4 {[%emt 0:00:16]} 48. Kf2 {[%emt 0:00:18]} g6 {[%emt 0:02:20]} 49. Ke2 {[%emt 0:00:39]} g5 {[%emt 0:01:57]} 50. Kf2 {[%emt 0:01:03]} g4 {[%emt 0:00:51]} 51. Ke2 {[%emt 0:00:00]} Ke4 {[%emt 0:00:00]} 52. Kf2 {[%emt 0:00:00]} f5 {[%emt 0:00:00]} 53. g3 {[%emt 0:00:00]} hxg3+ {[%emt 0:00:00]} 54. hxg3 {[%emt 0:00:00]} Kd3 {[%emt 0:00:00]} 55. Kf1 {[%emt 0:00:00]} Ke3 {[%emt 0:00:00]} 56. Kg2 {[%emt 0:00:00]} Ke2 {[%emt 0:00:00]} 57. Kg1 {[%emt 0:00:00]} Kf3 {[%emt 0:00:00]} 58. Kh2 {[%emt 0:00:00]} Kf2 {[%emt 0:00:00]} 59. Kh1 {[%emt 0:00:00]} Kxg3 {normal} 0-1

[Event "GER-ch Youth ODJM 2019"]
[Site "Willingen"]
[Date "2019.06.13"]
[Round "7.4"]
[White "Apel, Linus"]
[Black "Navarro Jahnke, Eric"]
[Result "1/2-1/2"]
[ECO "C16"]
[WhiteElo "1410"]
[BlackElo "1259"]
[Annotator "NA RC"]
[PlyCount "52"]
[EventDate "2019.06.07"]
[EventType "swiss"]
[EventRounds "9"]
[EventCountry "GER"]
[SourceTitle "playchess.com"]
[Source "ChessBase"]
[SourceQuality "1"]
[TimeControl "40/5400+30:1800+30"]

1. e4 {[%emt 0:00:00]} e6 {[%emt 0:00:00]} 2. d4 {[%emt 0:00:00]} d5 {[%emt 0:00:03]} 3. Nc3 {[%emt 0:00:16]} Bb4 {[%emt 0:00:08]} 4. e5 {[%emt 0:01:02]} Bxc3+ {[%emt 0:00:59]} 5. bxc3 {[%emt 0:00:26]} Nc6 {[%emt 0:00:46]} 6. f4 {[%emt 0:09:42]} Qh4+ {[%emt 0:01:27]} 7. g3 {[%emt 0:01:17]} Qd8 {[%emt 0:00:17]} 8. Nf3 {[%emt 0:00:58]} Nge7 {[%emt 0:00:37]} 9. Bd3 {[%emt 0:03:24]} O-O {[%emt 0:01:17]} 10. g4 {[%emt 0:36:08]} Bd7 {[%emt 0:03:35]} 11. h4 {[%emt 0:00:58]} Re8 {[%emt 0:00:59]} 12. g5 {[%emt 0:07:39]} Nf5 {[%emt 0:00:36]} 13. Kf2 {[%emt 0:00:09]} Nce7 {[%emt 0:00:39]} 14. Ba3 {[%emt 0:01:02]} Rb8 {[%emt 0:00:52]} 15. Bxe7 {[%emt 0:00:21]} Qxe7 {[%emt 0:01:08]} 16. Qc1 {[%emt 0:04:32]} c5 {[%emt 0:02:35]} 17. a3 {[%emt 0:01:42]} Rbc8 {[%emt 0:02:31]} 18. Qd2 {[%emt 0:01:50]} Ba4 {[%emt 0:04:39]} 19. h5 {[%emt 0:03:35]} Rc7 {[%emt 0:01:34]} 20. Nh4 {[%emt 0:03:37]} g6 {[%emt 0:03:26]} 21. Nf3 {[%emt 0:01:40]} Rec8 {[%emt 0:00:40]} 22. Ra2 {[%emt 0:00:20]} cxd4 {[%emt 0:06:06]} 23. cxd4 {[%emt 0:00:16]} Rc3 {[%emt 0:02:36]} 24. hxg6 {[%emt 0:01:56]} fxg6 {[%emt 0:00:48]} 25. Rb1 {[%emt 0:01:28]} b6 {[%emt 0:06:37]} 26. Rb4 {[%emt 0:02:24]} Bd7 {[%emt 0:01:41] normal} 1/2-1/2

[Event "GER-ch Youth ODJM 2019"]
[Site "Willingen"]
[Date "2019.06.13"]
[Round "7.5"]
[White "Petersen, Finn Christopher"]
[Black "Ortlepp, Klaudia"]
[Result "1-0"]
[ECO "C55"]
[WhiteElo "1780"]
[BlackElo "1570"]
[Annotator "NA RC"]
[PlyCount "83"]
[EventDate "2019.06.07"]
[EventType "swiss"]
[EventRounds "9"]
[EventCountry "GER"]
[SourceTitle "playchess.com"]
[Source "ChessBase"]
[SourceQuality "1"]
[TimeControl "40/5400+30:1800+30"]

1. e4 {[%emt 0:00:00]} e5 {[%emt 0:00:00]} 2. Nf3 {[%emt 0:00:00]} Nc6 {[%emt 0:00:00]} 3. d4 {[%emt 0:00:00]} exd4 {[%emt 0:00:00]} 4. Bc4 {[%emt 0:00:00]} Nf6 {[%emt 0:00:04]} 5. e5 {[%emt 0:00:08]} d5 {[%emt 0:00:09]} 6. Bb5 {[%emt 0:00:06]} Ne4 {[%emt 0:00:18]} 7. Nxd4 {[%emt 0:00:09]} Bd7 {[%emt 0:00:30]} 8. Bxc6 {[%emt 0:00:23]} bxc6 {[%emt 0:00:18]} 9. O-O {[%emt 0:00:23]} Bc5 {[%emt 0:01:15]} 10. f3 {[%emt 0:00:48]} Ng5 {[%emt 0:00:40]} 11. f4 {[%emt 0:00:31]} Ne4 {[%emt 0:01:10]} 12. Be3 {[%emt 0:00:20]} Rb8 {[%emt 0:02:51]} 13. Nd2 {[%emt 0:14:07]} Bxd4 {[%emt 0:05:22]} 14. Bxd4 {[%emt 0:01:04]} Bf5 {[%emt 0:01:26]} 15. b3 {[%emt 0:18:54]} Qe7 {[%emt 0:06:13]} 16. Nxe4 {[%emt 0:17:19]} Bxe4 {[%emt 0:00:29]} 17. Bxa7 {[%emt 0:04:34]} Rb5 {[%emt 0:03:14]} 18. a4 {[%emt 0:06:13]} Ra5 {[%emt 0:00:49]} 19. Be3 {[%emt 0:02:22]} O-O {[%emt 0:01:55]} 20. c3 {[%emt 0:12:54]} c5 {[%emt 0:02:36]} 21. Qe1 {[%emt 0:03:15]} Rfa8 {[%emt 0:04:17]} 22. Rf2 {[%emt 0:05:19]} Rb8 {[%emt 0:13:20]} 23. b4 {[%emt 0:00:57]} Ra6 {[%emt 0:08:06]} 24. Bxc5 {[%emt 0:00:23]} Qd7 {[%emt 0:00:53]} 25. b5 {[%emt 0:01:18]} Rg6 {[%emt 0:01:23]} 26. Qe3 {[%emt 0:03:19]} Ra8 {[%emt 0:02:40]} 27. Rb2 {[%emt 0:02:37]} Qg4 {[%emt 0:02:02]} 28. g3 {[%emt 0:01:16]} Rxa4 {[%emt 0:03:11]} 29. Rxa4 {[%emt 0:02:00]} Qd1+ {[%emt 0:00:08]} 30. Kf2 {[%emt 0:00:00]} Qxa4 {[%emt 0:00:20]} 31. Qe2 {[%emt 0:01:04]} Rh6 {[%emt 0:07:13]} 32. h4 {[%emt 0:00:07]} Qa8 {[%emt 0:05:28]} 33. Ra2 {[%emt 0:00:38]} Qc8 {[%emt 0:03:19]} 34. Qg4 {[%emt 0:00:49]} f5 {[%emt 0:05:16]} 35. Qe2 {[%emt 0:01:00]} Qd8 {[%emt 0:07:12]} 36. Ra6 {[%emt 0:02:31]} Rxh4 {[%emt 0:06:36]} 37. gxh4 {[%emt 0:00:02]} Qxh4+ {[%emt 0:00:10]} 38. Ke3 {[%emt 0:00:13]} Qg3+ {[%emt 0:00:14]} 39. Kd2 {[%emt 0:00:37]} Qxf4+ {[%emt 0:00:30]} 40. Be3 {[%emt 0:00:51]} Qh4 {[%emt 0:04:10]} 41. Qf2 {[%emt 0:06:51]} Qg4 {[%emt 0:06:05]} 42. e6 {[%emt 0:02:30] normal} 1-0